bitfinex-derivatives/quotes_ETHF0:USTF0_20250620
["timestamp","ask_amount","ask_price","bid_price","bid_amount"]
[1750379796829,0.86048781,2527.5,2527.4,7.02516781]
[1750379797028,0.06933781,2527.5,2527.4,7.02516781]
[1750379797328,1.44817,2527.8,2527.7,0.79109]
[1750379797632,1.45315,2527.9,2527.8,0.79105]
[1750379797823,1.45315,2527.9,2527.8,1.96815183]
[1750379798024,1.45315,2527.9,2527.8,2.64025183]
[1750379798331,0.79105,2527.9,2527.8,1.46315]
[1750379799331,0.79105,2527.9,2527.8,5.53804351]
[1750379801032,0.79105,2527.9,2527.8,2.24167285]
[1750379801230,0.79105,2527.9,2527.8,3.03272285]
[1750379801428,0.79105,2527.9,2527.8,1.46315]
[1750379802234,0.79105,2527.8,2527.7,6.35322928]
[1750379802435,0.79105,2527.8,2527.7,3.99887]
[1750379802634,0.79105,2527.8,2527.7,3.2078]
[1750379803527,0.79105,2527.8,2527.7,3.99889]
[1750379809338,0.86038781,2527.8,2527.7,3.99889]
[1750379817947,0.86038781,2527.8,2527.7,6.50421066]
[1750379820038,0.86038781,2527.8,2527.7,5.71312066]
[1750379820238,0.86038781,2527.8,2527.7,6.50421066]
[1750379820636,0.86038781,2527.8,2527.7,3.99889]
[1750379821241,0.86038781,2527.8,2527.7,6.50421066]
[1750379825050,0.86038781,2527.8,2527.7,3.2078]
[1750379825549,2.80598781,2527.8,2527.7,3.2078]
[1750379825841,2.80598781,2527.8,2527.7,3.99889]
[1750379826247,2.80598781,2527.8,2527.7,3.2078]
[1750379828454,2.80598781,2527.8,2527.7,5.56977834]
[1750379829456,0.79112,2527.6,2527.5,1.36194491]
[1750379829752,0.79115,2527.5,2527.4,3.2078]
[1750379829959,8.26445,2527.5,2527.4,3.2078]
[1750379830343,13.26445,2527.5,2527.4,0.5277314]
[1750379830550,0.79121,2527.3,2527.2,1.18116811]
[1750379830750,3.29653066,2527.3,2527.2,1.18116811]
[1750379830949,8.29653066,2527.3,2527.2,1.18116811]
[1750379831152,9.62863066,2527.3,2527.2,1.18116811]
[1750379831454,4.62863066,2527.3,2527.2,1.18116811]
[1750379831643,0.79124,2527.2,2527.1,4.38896811]
[1750379831847,2.15184,2527.2,2527.1,4.38896811]
[1750379832251,2.15184,2527.2,2527.1,1.18116811]
[1750379832755,1.3606,2527.2,2526.9,0.79133]
[1750379832960,0.79124,2527.2,2527.1,1.17876761]
[1750379833154,6.94924,2527.2,2527.1,1.17876761]
[1750379833658,0.79127,2527.1,2527.0,1.17876761]
[1750379837565,0.79131,2527.0,2526.9,1.17876761]
[1750379840658,0.79131,2527.0,2526.9,1.97010761]
[1750379841072,0.06933781,2527.1,2527.0,0.79131]
[1750379841266,0.06933781,2527.1,2527.0,7.68319827]
[1750379841562,0.06933781,2527.1,2527.0,6.50443066]
[1750379841770,0.79114,2527.6,2527.2,1.97808]
[1750379841972,6.159,2527.8,2527.5,2.50532066]
[1750379842274,0.79111,2527.7,2527.6,1.46529]
[1750379842458,0.79109,2527.8,2527.7,0.79107]
[1750379844767,0.79109,2527.7,2527.6,8.35425258]
[1750379848672,0.79109,2527.7,2527.6,5.05784192]
[1750379849371,0.79109,2527.7,2527.6,4.38364192]
[1750379849575,0.79109,2527.7,2527.6,5.17476192]
[1750379850167,0.79109,2527.7,2527.6,4.38364192]
[1750379850464,0.79109,2527.7,2527.6,5.17476192]
[1750379851776,0.79109,2527.7,2527.6,4.38364192]
[1750379852074,0.79109,2527.7,2527.6,5.17476192]
[1750379852374,0.79109,2527.7,2527.6,3.2078]
[1750379852871,0.79109,2527.7,2527.6,4.38430305]
[1750379853667,2.80389,2527.7,2527.6,4.38430305]
[1750379853862,0.79112,2527.6,2527.5,1.17650305]
[1750379854070,0.79112,2527.6,2526.9,3.81615416]
[1750379854071,0.79115,2527.5,2527.4,1.10716524]
[1750379854275,0.79127,2527.1,2527.0,2.35260213]
[1750379854572,0.7913,2527.0,2526.9,3.2078]
[1750379854774,2.8082,2527.0,2526.9,3.2078]
[1750379857378,0.7914,2526.7,2526.6,6.32815279]
[1750379858369,0.7914,2526.7,2526.6,5.53672279]
[1750379858569,0.7914,2526.7,2526.6,7.03063213]
[1750379858776,0.7914,2526.7,2526.6,6.23920213]
[1750379859274,0.7914,2526.7,2526.6,7.03063213]
[1750379860384,0.79139,2526.8,2526.7,0.79136]
[1750379860577,0.79139,2526.8,2526.7,2.36167149]
[1750379861176,0.79139,2526.8,2526.7,1.57031149]
[1750379861786,0.79139,2526.8,2526.7,2.36171149]
[1750379861984,0.79139,2526.8,2526.7,1.57031149]
[1750379862189,0.79139,2526.8,2526.7,2.36171149]
[1750379865389,0.7914,2526.7,2526.6,5.45691149]
[1750379866391,0.7914,2526.7,2526.6,6.24834149]
[1750379870593,0.7914,2526.7,2526.6,8.75366215]
[1750379871294,0.86073781,2526.7,2526.6,8.75366215]
[1750379872487,0.86073781,2526.7,2526.6,4.77811149]
[1750379873794,0.79149,2526.4,2526.3,4.77811149]
[1750379873990,6.94749,2526.4,2526.3,3.2078]
[1750379874387,8.24649,2526.4,2526.3,3.2078]
[1750379879200,8.24649,2526.4,2526.3,3.99932]
[1750379880197,6.156,2526.4,2526.3,3.99932]
[1750379880695,6.156,2526.4,2526.3,6.50464066]
[1750379881099,6.94749,2526.4,2526.3,6.50464066]
[1750379882489,0.06933781,2526.7,2526.5,0.79146]
[1750379882690,0.79143,2526.6,2526.5,0.79146]
[1750379884204,0.79146,2526.5,2526.4,3.05048149]
[1750379884606,0.79146,2526.5,2526.4,1.48017]
[1750379884806,0.79146,2526.5,2526.4,0.6887]
[1750379885699,0.79149,2526.4,2526.3,5.56961149]
[1750379885906,1.45829,2526.4,2526.3,5.56961149]
[1750379886497,0.79149,2526.4,2526.3,5.56961149]
[1750379887703,0.79149,2526.4,2526.3,5.57320595]
[1750379888005,0.79149,2526.4,2526.3,3.9993]
[1750379888602,0.79149,2526.4,2526.3,5.57320757]
[1750379888810,0.79149,2526.4,2526.3,3.9993]
[1750379889604,0.79149,2526.4,2526.3,8.85722279]
[1750379891805,0.79149,2526.4,2526.3,6.35190213]
[1750379892201,0.79149,2526.4,2526.3,8.85722279]
[1750379892402,0.79147,2526.5,2526.4,0.79146]
[1750379892606,0.79147,2526.5,2526.4,2.36573687]
[1750379893903,0.79147,2526.5,2526.4,1.57427687]
[1750379894314,0.79147,2526.5,2526.4,2.36576687]
[1750379899514,0.79147,2526.5,2526.4,0.79149]
[1750379900817,0.86080781,2526.5,2526.4,0.79149]
[1750379901612,0.86080781,2526.5,2526.4,3.14409213]
[1750379904712,0.06933781,2526.5,2526.4,3.14409213]
[1750379905017,0.06933781,2526.5,2526.4,0.79149]
[1750379905214,0.06933781,2526.5,2526.4,1.41739]
[1750379905412,0.06933781,2526.5,2526.4,5.90074416]
[1750379905614,0.06933781,2526.5,2526.4,2.75099]
[1750379907216,0.06933781,2526.5,2526.4,5.9012164]
[1750379908923,0.06933781,2526.5,2526.4,4.5676164]
[1750379911015,0.06933781,2526.5,2526.4,5.2398164]
[1750379914716,0.06933781,2526.5,2526.4,7.74513706]
[1750379915820,0.86079781,2526.5,2526.4,4.6139164]
[1750379916012,1.51969781,2526.5,2526.4,3.9417164]
[1750379916422,0.79149,2526.4,2526.3,6.3580264]
[1750379916620,2.70219,2526.4,2526.3,3.2078]
[1750379917423,2.70219,2526.4,2526.3,4.78275032]
[1750379919330,2.70219,2526.4,2526.3,3.2078]
[1750379919531,2.70219,2526.4,2526.3,4.38899702]
[1750379919732,7.70219,2526.4,2526.3,4.38899702]
[1750379920427,2.70219,2526.4,2526.3,4.38899702]
[1750379921227,2.70219,2526.4,2526.3,3.2078]
[1750379922734,0.79152,2526.3,2526.2,1.18119702]
[1750379923032,2.10922,2526.3,2526.2,1.18119702]
[1750379930035,0.79152,2526.3,2526.2,4.47807768]
[1750379930237,0.79152,2526.3,2526.2,5.12937768]
[1750379930436,0.79152,2526.3,2526.2,3.94818066]
[1750379931144,0.86085781,2526.3,2526.2,3.94818066]
[1750379931642,0.06933781,2526.3,2526.2,3.94818066]
[1750379932146,0.06933781,2526.3,2526.2,5.28978066]
[1750379938154,0.06933781,2526.3,2526.2,8.49758066]
[1750379943562,0.06933781,2526.3,2526.2,3.99936]
[1750379943952,0.86085781,2526.3,2526.2,3.99936]
[1750379944760,0.86085781,2526.3,2526.2,6.50468066]
[1750379945359,0.06933781,2526.3,2526.2,6.50468066]
[1750379945658,0.86085781,2526.3,2526.2,3.2078]
[1750379945862,2.11835781,2526.3,2526.2,3.2078]
[1750379946551,2.11835781,2526.3,2526.2,3.99936]
[1750379947452,0.86085781,2526.3,2526.2,3.99936]
[1750379947648,0.86085781,2526.3,2526.2,6.50468066]
[1750379949654,0.86085781,2526.3,2526.2,3.99936]
[1750379951063,7.68275781,2526.3,2526.2,3.2078]
[1750379951356,7.68275781,2526.3,2526.2,5.5684506]
[1750379951859,7.68275781,2526.3,2526.2,3.2078]
[1750379952055,7.68275781,2526.3,2526.2,4.7818227]
[1750379952962,9.03495781,2526.3,2526.2,3.2078]
[1750379953157,0.79156,2526.2,2526.1,1.5740227]
[1750379953458,0.79156,2526.2,2525.8,1.18097578]
[1750379953459,5.83645066,2526.2,2525.8,1.18097578]
[1750379953662,0.79168,2525.8,2525.7,1.18097578]
[1750379953869,0.79171,2525.7,2525.6,4.38877578]
[1750379954061,5.99503066,2525.7,2525.6,4.38877578]
[1750379954361,10.99503066,2525.7,2525.6,4.38877578]
[1750379954757,10.99503066,2525.7,2525.6,3.2078]
[1750379955153,0.79174,2525.6,2525.5,1.18097578]
[1750379955359,0.79177,2525.5,2525.4,1.18097578]
[1750379955563,0.79181,2525.4,2525.3,1.18097578]
[1750379955863,6.94281,2525.4,2525.3,1.18097578]
[1750379956259,8.28521,2525.4,2525.3,1.18097578]
[1750379957663,0.79184,2525.3,2525.2,4.38877578]
[1750379957858,2.11494,2525.3,2525.2,4.38877578]
[1750379958367,2.11494,2525.3,2525.2,5.18064578]
[1750379959572,2.78664,2525.3,2525.2,3.99967]
[1750379960469,2.78664,2525.3,2525.2,3.2078]
[1750379960666,5.29196066,2525.3,2525.2,3.2078]
[1750379961962,0.79196,2524.9,2524.8,4.7818227]
[1750379962166,0.79196,2524.9,2524.8,3.2078]
[1750379962475,0.79209,2524.5,2524.4,3.2078]
[1750379962669,1.97999,2524.8,2524.1,4.0]
[1750379962670,0.79218,2524.2,2524.1,4.0]
[1750379962865,0.79218,2524.2,2524.1,0.7922]
[1750379963669,2.14798,2524.2,2524.1,0.7922]
[1750379965065,1.3558,2524.2,2524.1,0.7922]
[1750379965462,2.14798,2524.2,2524.1,0.7922]
[1750379965973,1.3558,2524.2,2524.1,0.7922]
[1750379966365,0.6502,2524.3,2524.2,0.79218]
[1750379966561,0.6502,2524.3,2524.2,3.29750066]
[1750379967069,6.8032,2524.3,2524.2,3.29750066]
[1750379967272,1.44235,2524.3,2524.2,3.29750066]
[1750379967467,7.59535,2524.3,2524.2,3.29750066]
[1750379967666,7.59535,2524.3,2524.2,0.79218]
[1750379968170,7.59635,2524.3,2524.2,0.79218]
[1750379968760,6.8042,2524.3,2524.2,0.79218]
[1750379970675,7.59635,2524.3,2524.2,0.79218]
[1750379970877,6.8042,2524.3,2524.2,0.79218]
[1750379972973,7.59635,2524.3,2524.2,0.79218]
[1750379973567,0.79218,2524.2,2524.1,3.99999]
[1750379973967,2.04658,2524.2,2524.1,3.2078]
[1750379974181,4.55190066,2524.2,2524.1,3.2078]
[1750379974481,2.04658,2524.2,2524.1,3.2078]
[1750379977282,2.04658,2524.2,2524.1,4.00001]
[1750379977585,2.04658,2524.2,2524.1,3.2078]
[1750379978383,2.04658,2524.2,2524.1,4.00001]
[1750379979374,2.04658,2524.2,2524.1,3.2078]
[1750379980485,2.04658,2524.2,2524.1,4.00001]
[1750379980681,2.04658,2524.2,2524.1,3.2078]
[1750379980981,0.79218,2524.2,2524.1,4.00001]
[1750379982280,0.79221,2524.1,2524.0,0.79222]
[1750379983078,1.98052,2524.2,2523.8,3.2078]
[1750379983278,1.98052,2524.2,2523.8,4.00008]
[1750379983279,0.79228,2523.9,2523.8,4.00008]
[1750379983486,6.94528,2523.9,2523.8,4.00008]
[1750379984186,6.94528,2523.9,2523.8,3.2078]
[1750379984778,9.45060066,2523.9,2523.8,3.2078]
[1750379984988,11.37930066,2523.9,2523.8,3.2078]
[1750379985895,11.37930066,2523.9,2523.4,2.2488227]
[1750379986092,0.79237,2523.6,2523.5,3.2078]
[1750379986891,2.03667,2523.6,2523.5,3.2078]
[1750379988397,0.6844,2523.9,2523.8,0.79231]
[1750379988595,6.8384,2523.9,2523.8,4.00011]
[1750379988804,7.63068,2523.9,2523.8,3.2078]
[1750379989006,7.63068,2523.9,2523.8,4.00011]
[1750379989506,10.13600066,2523.9,2523.8,3.2078]
[1750379989704,11.51670066,2523.9,2523.8,3.2078]
[1750379990608,11.51670066,2523.9,2523.8,4.00011]
[1750379990801,9.01138,2523.9,2523.8,4.00011]
[1750379990998,2.85738,2523.9,2523.8,4.00011]
[1750379991201,33.04938,2523.9,2523.8,4.00011]
[1750379991402,33.04938,2523.9,2523.8,3.2078]
[1750379991706,35.55470066,2523.9,2523.8,3.2078]
[1750379993004,0.79237,2523.6,2523.5,0.06933781]
[1750379993705,2.07377,2523.6,2523.5,0.06933781]
[1750379994006,0.7924,2523.5,2523.4,4.00023]
[1750379994210,7.5833,2523.5,2523.4,4.00023]
[1750379996805,7.5833,2523.5,2523.4,3.2078]
[1750379998304,10.75342066,2523.5,2523.4,3.2078]
[1750380000509,6.95238,2523.7,2523.6,0.79235]
[1750380000809,0.7924,2523.5,2523.4,3.2078]
[1750380001008,0.7924,2523.5,2523.4,4.78512649]
[1750380001212,0.7924,2523.5,2523.4,5.57755649]
[1750380001413,0.79238,2523.6,2523.5,0.79237]
[1750380001615,1.47777,2523.7,2523.6,0.79237]
[1750380001807,7.63777,2523.7,2523.6,0.79237]
[1750380002004,6.95237,2523.7,2523.6,0.79237]
[1750380002412,0.79237,2523.7,2523.6,0.79237]
[1750380002612,6.95237,2523.7,2523.6,2.11957]
[1750380003815,0.79234,2523.8,2523.7,0.79231]
[1750380004116,6.95234,2523.8,2523.7,4.00011]
[1750380004613,0.7923,2523.9,2523.8,0.79226]
[1750380004813,6.16,2523.9,2523.8,3.29758066]
[1750380005003,6.16,2523.9,2523.8,6.92450715]
[1750380005204,0.79224,2524.1,2523.8,6.13224715]
[1750380005406,6.95224,2524.1,2524.0,4.00005]
[1750380006915,6.95224,2524.1,2524.0,3.2078]
[1750380007616,6.95224,2524.1,2524.0,4.00005]
[1750380009016,6.16,2524.1,2524.0,4.00005]
[1750380009717,6.95221,2524.1,2524.0,4.00005]
[1750380011210,6.95221,2524.1,2524.0,4.68075]
[1750380011814,6.95221,2524.1,2524.0,3.8885]
[1750380012010,9.45753066,2524.1,2524.0,3.8885]
[1750380012413,6.95221,2524.1,2524.0,4.68075]
[1750380013117,0.79221,2524.1,2524.0,4.68075]
[1750380013510,0.79221,2524.1,2524.0,7.55287649]
[1750380014220,53.7764,2524.3,2524.1,0.79218]
[1750380014221,0.7922,2524.2,2524.1,0.79218]
[1750380014416,0.7922,2524.2,2524.1,2.08698]
[1750380015112,0.7922,2524.2,2524.1,3.66430649]
[1750380015618,0.7922,2524.2,2524.1,2.36950649]
[1750380015816,0.7922,2524.2,2524.1,0.79218]
[1750380016017,0.79221,2524.1,2524.0,6.25805649]
[1750380017015,45.637,2524.3,2524.0,7.44640649]
[1750380017220,51.796,2524.3,2524.2,0.79218]
[1750380017409,51.796,2524.3,2524.2,2.36950649]
[1750380017614,51.796,2524.3,2524.2,3.67660649]
[1750380018424,52.58815,2524.3,2524.2,3.67660649]
[1750380018617,7.69333066,2524.6,2524.2,2.88442649]
[1750380018618,3.2078,2524.6,2524.2,2.88442649]
[1750380018816,6.95112,2524.5,2524.4,3.99989]
[1750380019221,6.95112,2524.5,2524.4,4.67259]
[1750380020619,6.159,2524.5,2524.4,4.67259]
[1750380020824,0.79207,2524.6,2524.5,0.79209]
[1750380021419,0.79209,2524.5,2524.4,4.78512649]
[1750380021630,0.79215,2524.3,2524.2,2.36950649]
[1750380021824,6.95115,2524.3,2524.2,2.36950649]
[1750380023529,6.95115,2524.3,2524.2,2.4388443]
[1750380024719,6.95115,2524.3,2524.2,1.6466643]
[1750380024926,6.95115,2524.3,2524.2,0.06933781]
[1750380025134,6.95115,2524.3,2524.2,0.86151781]
[1750380028430,6.95115,2524.3,2524.2,2.4388443]
[1750380029632,6.95115,2524.3,2524.2,0.86151781]
[1750380031732,0.79215,2524.3,2524.2,0.86151781]
[1750380032834,0.79215,2524.3,2524.2,3.22216841]
[1750380033037,0.79215,2524.3,2524.2,0.86151781]
[1750380033634,0.79215,2524.3,2524.2,3.22216841]
[1750380034234,0.79215,2524.3,2524.2,0.86151781]
[1750380034637,0.79215,2524.3,2524.2,3.22216841]
[1750380036636,0.79215,2524.3,2524.2,2.42998841]
[1750380037036,0.79215,2524.3,2524.2,3.22216841]
[1750380038438,2.05675,2524.3,2524.2,3.22216841]
[1750380039239,2.05675,2524.3,2524.2,2.42998841]
[1750380039536,2.05675,2524.3,2524.2,3.22216841]
[1750380040627,2.05675,2524.3,2524.2,0.86151781]
[1750380043942,2.05675,2524.3,2524.2,4.06931781]
[1750380045242,4.56207066,2524.3,2524.2,5.64746161]
[1750380045640,2.05675,2524.3,2524.2,5.64746161]
[1750380046647,2.05675,2524.3,2524.2,3.27713781]
[1750380047042,2.05675,2524.3,2524.2,4.06931781]
[1750380047534,1.2646,2524.3,2524.2,6.57463847]
[1750380047940,0.6391,2524.4,2524.3,0.79215]
[1750380049549,1.43122,2524.4,2524.3,0.79215]
[1750380051645,0.79215,2524.3,2524.2,3.99996]
[1750380052845,0.79215,2524.3,2524.2,7.1501864]
[1750380053246,0.79215,2524.3,2524.2,3.99996]
[1750380055751,4.48559066,2524.5,2524.1,3.1502264]
[1750380055946,0.79218,2524.2,2524.1,3.1502264]
[1750380057951,0.79218,2524.2,2524.1,3.9424364]
[1750380061543,0.79215,2524.5,2524.4,0.79209]
[1750380061748,0.79215,2524.5,2524.4,5.57812701]
[1750380061949,0.79215,2524.5,2524.4,6.37024701]
[1750380064052,0.79215,2524.5,2524.4,3.99992]
[1750380064360,0.79209,2524.6,2524.5,0.79206]
[1750380064550,0.79209,2524.6,2524.5,3.16254804]
[1750380064751,0.79203,2524.8,2524.7,0.79197]
[1750380064951,0.79203,2524.8,2524.7,6.36969293]
[1750380065154,0.79203,2524.8,2524.7,5.57772293]
[1750380065457,0.79203,2524.8,2524.7,6.36975293]
[1750380065851,0.79203,2524.8,2524.7,5.57772293]
[1750380066763,0.79203,2524.8,2524.7,3.2078]
[1750380067356,0.79202,2524.7,2524.6,2.36992293]
[1750380071455,0.79203,2524.7,2524.6,1.57943992]
[1750380076165,3.29735066,2524.7,2524.6,1.57943992]
[1750380076568,4.63035066,2524.7,2524.6,1.57943992]
[1750380078267,2.12503,2524.7,2524.6,1.57943992]
[1750380078468,0.79203,2524.7,2524.6,1.57943992]
[1750380080067,4.58065066,2524.7,2524.6,1.57943992]
[1750380080268,4.58065066,2524.7,2524.6,1.64877773]
[1750380082074,4.58065066,2524.7,2524.6,0.80805773]
[1750380082370,0.79215,2524.3,2524.2,1.5708456]
[1750380082567,0.79228,2523.9,2523.8,3.2078]
[1750380082761,6.94828,2523.9,2523.8,3.2078]
[1750380083163,0.79231,2523.8,2523.7,0.6257]
[1750380083367,0.79231,2523.8,2523.7,1.8907]
[1750380083564,0.79231,2523.8,2523.7,5.18836066]
[1750380083869,0.79231,2523.8,2523.7,4.39602066]
[1750380084266,0.79224,2524.1,2524.0,0.79221]
[1750380084466,0.79224,2524.1,2524.0,3.29753066]
[1750380085076,1.2793,2524.5,2524.0,3.29753066]
[1750380085077,0.79201,2524.8,2524.7,0.792]
[1750380085373,0.79201,2524.8,2524.7,6.50512066]
[1750380085764,1.97978,2525.1,2524.7,6.50512066]
[1750380085765,0.79199,2524.9,2524.8,0.79197]
[1750380085965,0.79199,2524.9,2524.8,1.2457]
[1750380086266,0.79199,2524.9,2524.8,2.03769]
[1750380087672,0.79199,2524.9,2524.8,1.2457]
[1750380087873,0.79199,2524.8,2524.7,3.8845]
[1750380088366,0.79199,2524.8,2524.7,4.5202]
[1750380088568,0.79199,2524.8,2524.7,5.31223]
[1750380089378,0.79199,2524.8,2524.7,4.5202]
[1750380091281,0.79199,2524.8,2524.7,5.31223]
[1750380091678,0.79199,2524.8,2524.7,4.5202]
[1750380091981,0.79199,2524.8,2524.7,3.2078]
[1750380092374,0.79206,2524.6,2524.5,1.43217]
[1750380093980,0.79206,2524.6,2524.5,2.71407]
[1750380094372,0.79205,2524.7,2524.6,0.79201]
[1750380095077,0.79202,2524.8,2524.7,0.79198]
[1750380095379,0.79202,2524.8,2524.7,3.99978]
[1750380099372,0.79199,2524.9,2524.8,0.79196]
[1750380100677,0.79199,2524.9,2524.8,1.48236]
[1750380100889,1.48095,2525.0,2524.9,0.79196]
[1750380108287,0.79199,2524.9,2524.8,0.79197]
[1750380111292,0.79199,2524.8,2524.7,3.9998]
[1750380112089,0.79199,2524.8,2524.7,5.57465617]
[1750380112589,0.79199,2524.8,2524.7,3.9998]
[1750380113091,0.79199,2524.8,2524.7,6.36230405]
[1750380113893,0.79199,2524.8,2524.7,3.9998]
[1750380118302,0.689,2525.0,2524.7,7.69314066]
[1750380118502,0.689,2525.0,2524.9,2.36885163]
[1750380118909,6.94791,2525.1,2525.0,0.79193]
[1750380119210,0.79178,2525.6,2525.5,0.79174]
[1750380119406,0.79178,2525.6,2525.5,2.37024829]
[1750380120108,0.79178,2525.6,2525.5,1.57850829]
[1750380120304,2.10208,2525.6,2525.5,1.57850829]
[1750380120817,2.10208,2525.6,2525.5,2.37027829]
[1750380121021,2.10208,2525.6,2525.5,1.57850829]
[1750380122514,2.10208,2525.6,2525.5,0.79177]
[1750380123515,0.79177,2525.5,2525.4,5.57808829]
[1750380123708,0.79177,2525.5,2525.4,4.78630829]
[1750380124118,0.79177,2525.5,2525.4,5.57811829]
[1750380124517,0.79177,2525.5,2525.4,2.37031829]
[1750380124815,3.29709066,2525.5,2525.4,4.78630829]
[1750380125813,0.79177,2525.5,2525.4,4.78630829]
[1750380126215,0.79177,2525.5,2525.4,5.57811829]
[1750380127022,0.79177,2525.5,2525.4,4.78630829]
[1750380127619,0.79177,2525.5,2525.4,5.57811829]
[1750380128016,0.79177,2525.5,2525.4,3.2078]
[1750380128410,0.79177,2525.5,2525.4,4.78630829]
[1750380128615,0.79177,2525.5,2525.4,3.2078]
[1750380128815,3.29709066,2525.5,2525.4,3.2078]
[1750380129021,0.79181,2525.4,2525.3,1.57850829]
[1750380129221,3.41401,2525.4,2525.3,1.57850829]
[1750380130622,1.46771,2525.4,2525.3,2.37034829]
[1750380131323,0.79181,2525.4,2525.3,0.79184]
[1750380131521,0.79181,2525.4,2525.3,2.36606304]
[1750380131922,0.79181,2525.4,2525.3,0.79184]
[1750380132630,1.44529,2525.5,2525.4,0.79181]
[1750380132819,1.44529,2525.5,2525.4,5.57369284]
[1750380133934,0.6535,2525.5,2525.4,5.57369284]
[1750380135134,6.185,2525.7,2525.6,0.79174]
[1750380135729,6.185,2525.7,2525.6,3.29706066]
[1750380135929,3.2078,2526.3,2525.6,2.50532066]
[1750380136123,0.79158,2526.2,2526.1,0.79156]
[1750380137830,0.79162,2526.0,2525.9,3.99943]
[1750380138626,1.44742,2526.0,2525.9,3.99943]
[1750380138830,1.44742,2526.0,2525.9,3.2078]
[1750380139129,2.11342,2526.0,2525.9,3.99945]
[1750380139930,1.3218,2526.0,2525.7,1.57314887]
[1750380140230,0.79171,2525.7,2525.6,4.78094887]
[1750380141127,1.41871,2525.7,2525.6,4.78094887]
[1750380142029,1.41871,2525.7,2525.6,5.57268887]
[1750380145522,1.41871,2525.7,2525.6,3.99954]
[1750380146125,1.41871,2525.7,2525.6,5.5725201]
[1750380146729,1.41871,2525.7,2525.6,3.99954]
[1750380148731,1.41871,2525.7,2525.6,6.36730243]
[1750380152834,0.627,2525.7,2525.6,6.36730243]
[1750380153040,0.79169,2525.9,2525.8,0.79165]
[1750380153232,0.79169,2525.9,2525.8,2.36610518]
[1750380153836,2.11259,2525.9,2525.8,1.57445518]
[1750380154737,0.79168,2525.8,2525.7,1.57445518]
[1750380155038,2.11258,2525.8,2525.7,1.57445518]
[1750380156338,4.61790066,2525.8,2525.7,1.57445518]
[1750380160846,2.11258,2525.8,2525.7,1.57445518]
[1750380161443,2.11258,2525.8,2525.7,2.36616518]
[1750380161844,2.11258,2525.8,2525.7,1.57445518]
[1750380162637,8.26758,2525.8,2525.7,1.57445518]
[1750380163447,0.79171,2525.7,2525.6,3.15950243]
[1750380163743,1.46941,2525.7,2525.6,3.15950243]
[1750380163943,2.81561,2525.7,2525.6,2.36776243]
[1750380167946,2.81561,2525.7,2525.6,3.15950243]
[1750380168342,2.81561,2525.7,2525.6,2.36776243]
[1750380171648,2.88494781,2525.7,2525.6,2.36776243]
[1750380172150,0.79174,2525.6,2525.5,2.36776243]
[1750380172351,4.67196066,2525.6,2525.5,2.36776243]
[1750380173450,0.79177,2525.5,2525.4,5.57556243]
[1750380173654,2.84097,2525.5,2525.4,5.57556243]
[1750380174451,2.84097,2525.5,2525.4,2.36776243]
[1750380174847,0.79181,2525.4,2525.3,2.36776243]
[1750380175151,0.79184,2525.3,2525.2,2.36776243]
[1750380175545,2.06584,2525.3,2525.2,2.36776243]
[1750380177646,0.79187,2525.2,2525.1,2.36776243]
[1750380180251,0.79187,2525.2,2525.1,3.15966243]
[1750380181253,0.79187,2525.2,2525.1,1.4533]
[1750380181451,0.79185,2525.4,2525.3,0.79184]
[1750380181654,6.94785,2525.4,2525.3,5.5751243]
[1750380184267,6.94785,2525.4,2525.3,4.7832843]
[1750380184563,6.94785,2525.4,2525.3,5.5751243]
[1750380188466,0.79185,2525.4,2525.3,3.99964]
[1750380189166,0.79185,2525.4,2525.3,5.5750925]
[1750380189866,0.86118781,2525.4,2525.3,5.5750925]
[1750380190370,0.86118781,2525.4,2525.3,3.99964]
[1750380190967,0.79185,2525.4,2525.3,3.99964]
[1750380191364,0.79185,2525.4,2525.3,0.79184]
[1750380191566,0.79185,2525.4,2525.3,3.99964]
[1750380191871,0.86118781,2525.4,2525.3,3.99964]
[1750380194569,0.86118781,2525.4,2525.3,6.36287499]
[1750380196671,0.86118781,2525.4,2525.3,5.57103499]
[1750380196973,0.79185,2525.4,2525.3,5.57103499]
[1750380197265,0.79185,2525.4,2525.3,6.36287499]
[1750380200968,6.154,2525.5,2525.4,0.79181]
[1750380201169,0.79176,2525.7,2525.4,2.36323499]
[1750380201376,0.79176,2525.7,2525.6,3.99951]
[1750380206676,0.79167,2526.0,2525.9,0.79161]
[1750380206982,0.79167,2526.0,2525.9,6.50473066]
[1750380207283,0.79161,2526.1,2526.0,0.79159]
[1750380207581,0.79161,2526.1,2526.0,2.3672981]
[1750380207782,0.79161,2526.1,2526.0,2.6808123]
[1750380207976,0.79161,2526.1,2526.0,3.3710123]
[1750380208578,0.79161,2526.1,2526.0,3.0574981]
[1750380208781,0.79156,2526.3,2526.2,0.79151]
[1750380209075,0.79156,2526.3,2526.2,5.57341405]
[1750380209480,0.6685,2526.4,2526.3,0.79152]
[1750380209481,1.46001,2526.4,2526.3,0.79152]
[1750380211980,0.79152,2526.3,2526.2,3.99933]
[1750380212181,0.79152,2526.3,2526.2,3.99936]
[1750380214288,0.86085781,2526.3,2526.2,3.99936]
[1750380215988,0.86085781,2526.3,2526.2,3.2078]
[1750380216689,0.86085781,2526.3,2526.2,3.99936]
[1750380216893,0.86085781,2526.3,2526.2,3.2078]
[1750380218392,0.86085781,2526.3,2526.2,3.99936]
[1750380218695,0.06933781,2526.3,2526.2,3.99936]
[1750380220392,0.06933781,2526.3,2526.2,5.37816]
[1750380222896,0.06933781,2526.3,2526.2,11.52716]
[1750380223804,0.622,2526.7,2526.6,0.79143]
[1750380224095,0.6336,2526.8,2526.7,0.7914]
[1750380225698,1.42497,2526.8,2526.7,0.7914]
[1750380226487,6.8147,2527.0,2526.7,0.7914]
[1750380226488,1.45702,2527.0,2526.9,0.79134]
[1750380226798,1.45702,2527.0,2526.9,3.99914]
[1750380226799,0.6236,2527.0,2526.9,3.99914]
[1750380227202,1.4149,2527.0,2526.9,3.99914]
[1750380227387,0.7913,2527.0,2526.9,3.99914]